[Event "Titled Tuesday Blitz February 21 Early 2023"]
[White "Manukyan, Sargis V."]
[Black "lisjakzlatko1"]
[WhiteFideId "13303465"]
[WhiteElo "2253"]
[BlackElo "2162"]
[Result "0-1"]
[Round "02"]
[TimeControl "180+2"]
[Date "2023.02.21"]
[WhiteClock "0:00:19"]
[BlackClock "0:00:06"]

1. Nf3 {[%clk 0:02:53]}  d6 {[%clk 0:02:58]} 2. d4 {[%clk 0:02:52]}  Bg4 {[%clk 0:02:58]} 3. g3 {[%clk 0:02:51]}  Nd7 {[%clk 0:02:58]} 4. Bg2 {[%clk 0:02:51]}  e5 {[%clk 0:02:57]} 5. dxe5 {[%clk 0:02:52]}  dxe5 {[%clk 0:02:56]} 6. O-O {[%clk 0:02:52]}  Ngf6 {[%clk 0:02:52]} 7. Nc3 {[%clk 0:02:50]}  c6 {[%clk 0:02:44]} 8. Bg5 {[%clk 0:02:46]}  h6 {[%clk 0:02:39]} 9. Bxf6 {[%clk 0:02:42]}  Qxf6 {[%clk 0:02:37]} 10. Qd3 {[%clk 0:02:39]}  O-O-O {[%clk 0:02:24]} 11. Rad1 {[%clk 0:02:35]}  Qe6 {[%clk 0:02:20]} 12. Ne4 {[%clk 0:02:25]}  f5 {[%clk 0:01:46]} 13. Nd6+ {[%clk 0:02:15]}  Kb8 {[%clk 0:01:46]} 14. h3 {[%clk 0:02:05]}  e4 {[%clk 0:01:39]} 15. Qe3 {[%clk 0:01:52]}  Bxf3 {[%clk 0:01:09]} 16. exf3 {[%clk 0:01:34]}  Bxd6 {[%clk 0:01:08]} 17. fxe4 {[%clk 0:01:34]}  fxe4 {[%clk 0:00:54]} 18. Rfe1 {[%clk 0:01:34]}  Nf6 {[%clk 0:00:49]} 19. a3 {[%clk 0:01:32]}  Rhe8 {[%clk 0:00:44]} 20. b4 {[%clk 0:01:29]}  Qc4 {[%clk 0:00:39]} 21. Rc1 {[%clk 0:01:24]}  Nd5 {[%clk 0:00:37]} 22. Qb3 {[%clk 0:01:17]}  Qd4 {[%clk 0:00:29]} 23. c4 {[%clk 0:01:14]}  Nf6 {[%clk 0:00:25]} 24. Rcd1 {[%clk 0:01:13]}  Qe5 {[%clk 0:00:21]} 25. a4 {[%clk 0:01:08]}  Bc7 {[%clk 0:00:20]} 26. Rxd8+ {[%clk 0:00:57]}  Rxd8 {[%clk 0:00:19]} 27. a5 {[%clk 0:00:58]}  Rd3 {[%clk 0:00:17]} 28. Qa4 {[%clk 0:00:54]}  Qd4 {[%clk 0:00:15]} 29. b5 {[%clk 0:00:39]}  Bxg3 {[%clk 0:00:13]} 30. Rf1 {[%clk 0:00:39]}  Rd2 {[%clk 0:00:12]} 31. bxc6 {[%clk 0:00:35]}  Rxf2 {[%clk 0:00:10]} 32. c7+ {[%clk 0:00:29]}  Kxc7 {[%clk 0:00:09]} 33. Kh1 {[%clk 0:00:28]}  Rxf1+ {[%clk 0:00:08]} 34. Bxf1 {[%clk 0:00:29]}  Qf2 {[%clk 0:00:07]} 35. Qa2 {[%clk 0:00:19]}  Qxf1# {[%clk 0:00:06]} 0-1


[Site "https://www.chess.com"]

[Event "Titled Tuesday Blitz February 21 Early 2023"]
[White "Wahedi, Ahmad Siar"]
[Black "Winkels, Marcel"]
[WhiteFideId "4651260"]
[BlackFideId "1003887"]
[WhiteElo "2274"]
[BlackElo "1960"]
[Result "1-0"]
[Round "02"]
[TimeControl "180+2"]
[Date "2023.02.21"]
[WhiteClock "0:00:42"]
[BlackClock "0:00:02"]

1. e4 {[%clk 0:03:00]}  c5 {[%clk 0:02:58]} 2. Nf3 {[%clk 0:03:00]}  d6 {[%clk 0:02:58]} 3. d4 {[%clk 0:02:59]}  cxd4 {[%clk 0:02:59]} 4. Nxd4 {[%clk 0:03:00]}  Nf6 {[%clk 0:02:59]} 5. Nc3 {[%clk 0:03:00]}  a6 {[%clk 0:02:59]} 6. Be3 {[%clk 0:02:59]}  e5 {[%clk 0:02:58]} 7. Nb3 {[%clk 0:02:58]}  Be6 {[%clk 0:02:57]} 8. f3 {[%clk 0:02:58]}  Nbd7 {[%clk 0:02:55]} 9. Qd2 {[%clk 0:02:58]}  h5 {[%clk 0:02:54]} 10. O-O-O {[%clk 0:02:54]}  Rc8 {[%clk 0:02:42]} 11. Bg5 {[%clk 0:02:41]}  Be7 {[%clk 0:02:38]} 12. Kb1 {[%clk 0:02:39]}  b5 {[%clk 0:02:36]} 13. h4 {[%clk 0:02:35]}  b4 {[%clk 0:02:20]} 14. Nd5 {[%clk 0:02:35]}  Bxd5 {[%clk 0:02:15]} 15. exd5 {[%clk 0:02:36]}  a5 {[%clk 0:02:14]} 16. Be2 {[%clk 0:02:28]}  a4 {[%clk 0:02:07]} 17. Nc1 {[%clk 0:02:28]}  Qa5 {[%clk 0:02:08]} 18. g4 {[%clk 0:02:19]}  O-O {[%clk 0:01:55]} 19. f4 {[%clk 0:02:13]}  a3 {[%clk 0:01:27]} 20. b3 {[%clk 0:02:06]}  Rc5 {[%clk 0:01:16]} 21. fxe5 {[%clk 0:02:03]}  Rxd5 {[%clk 0:01:05]} 22. exf6 {[%clk 0:01:44]}  Rxd2 {[%clk 0:00:56]} 23. fxe7 {[%clk 0:01:43]}  Re8 {[%clk 0:00:33]} 24. Rxd2 {[%clk 0:01:39]}  Qe5 {[%clk 0:00:32]} 25. Nd3 {[%clk 0:01:39]}  Qc3 {[%clk 0:00:30]} 26. Rdd1 {[%clk 0:01:25]}  Ne5 {[%clk 0:00:28]} 27. Bd2 {[%clk 0:01:17]}  Qd4 {[%clk 0:00:22]} 28. Bc1 {[%clk 0:01:15]}  Qc3 {[%clk 0:00:16]} 29. Nxe5 {[%clk 0:01:14]}  Qxe5 {[%clk 0:00:13]} 30. Bc4 {[%clk 0:01:08]}  Qxe7 {[%clk 0:00:12]} 31. gxh5 {[%clk 0:01:08]}  Qf6 {[%clk 0:00:11]} 32. Rhf1 {[%clk 0:01:06]}  Qe5 {[%clk 0:00:09]} 33. Rxf7 {[%clk 0:00:56]}  Kh8 {[%clk 0:00:07]} 34. h6 {[%clk 0:00:53]}  gxh6 {[%clk 0:00:05]} 35. h5 {[%clk 0:00:47]}  Rg8 {[%clk 0:00:02]} 36. Rd7 {[%clk 0:00:42]} 1-0


[Site "https://www.chess.com"]

[Event "Titled Tuesday Blitz February 21 Early 2023"]
[White "Delorme, Alban"]
[Black "Ziatdinov, Raset"]
[WhiteFideId "623636"]
[BlackFideId "2015323"]
[WhiteElo "2298"]
[BlackElo "2101"]
[Result "1/2-1/2"]
[Round "02"]
[TimeControl "180+2"]
[Date "2023.02.21"]
[WhiteClock "0:00:02"]
[BlackClock "0:00:22"]

1. e4 {[%clk 0:03:00]}  c5 {[%clk 0:02:56]} 2. Nf3 {[%clk 0:03:01]}  Nc6 {[%clk 0:02:56]} 3. d4 {[%clk 0:03:01]}  cxd4 {[%clk 0:02:56]} 4. Nxd4 {[%clk 0:03:02]}  e5 {[%clk 0:02:56]} 5. Nb5 {[%clk 0:03:00]}  d6 {[%clk 0:02:56]} 6. N1c3 {[%clk 0:03:00]}  a6 {[%clk 0:02:56]} 7. Na3 {[%clk 0:03:00]}  b5 {[%clk 0:02:56]} 8. Nd5 {[%clk 0:03:01]}  Nge7 {[%clk 0:02:56]} 9. c4 {[%clk 0:03:01]}  Nd4 {[%clk 0:02:55]} 10. Be3 {[%clk 0:02:56]}  Nxd5 {[%clk 0:02:52]} 11. exd5 {[%clk 0:02:53]}  Be7 {[%clk 0:02:52]} 12. Bd3 {[%clk 0:02:42]}  Nf5 {[%clk 0:02:27]} 13. O-O {[%clk 0:02:32]}  O-O {[%clk 0:02:25]} 14. cxb5 {[%clk 0:02:19]}  Nxe3 {[%clk 0:02:24]} 15. fxe3 {[%clk 0:02:19]}  f5 {[%clk 0:02:24]} 16. bxa6 {[%clk 0:02:17]}  e4 {[%clk 0:02:18]} 17. Be2 {[%clk 0:02:10]}  Bg5 {[%clk 0:02:16]} 18. Nc4 {[%clk 0:02:07]}  Bxa6 {[%clk 0:02:15]} 19. Qd4 {[%clk 0:01:51]}  Bf6 {[%clk 0:02:15]} 20. Qd2 {[%clk 0:01:48]}  Bxc4 {[%clk 0:02:14]} 21. Bxc4 {[%clk 0:01:49]}  Qb6 {[%clk 0:02:07]} 22. Rxf5 {[%clk 0:01:44]}  Bxb2 {[%clk 0:01:55]} 23. Rxf8+ {[%clk 0:01:36]}  Rxf8 {[%clk 0:01:55]} 24. Rb1 {[%clk 0:01:36]}  Qc5 {[%clk 0:01:55]} 25. Rxb2 {[%clk 0:01:18]}  Qxc4 {[%clk 0:01:55]} 26. h3 {[%clk 0:01:17]}  h5 {[%clk 0:01:53]} 27. Qd4 {[%clk 0:01:03]}  Rf1+ {[%clk 0:01:50]} 28. Kh2 {[%clk 0:01:03]}  Qxd4 {[%clk 0:01:36]} 29. exd4 {[%clk 0:01:03]}  Rd1 {[%clk 0:01:37]} 30. Rb6 {[%clk 0:00:57]}  e3 {[%clk 0:01:35]} 31. Rb2 {[%clk 0:00:40]}  Rd2 {[%clk 0:01:34]} 32. Rb3 {[%clk 0:00:37]}  e2 {[%clk 0:01:32]} 33. Re3 {[%clk 0:00:38]}  Rxa2 {[%clk 0:01:32]} 34. Kg3 {[%clk 0:00:37]}  Kf7 {[%clk 0:01:32]} 35. Kf3 {[%clk 0:00:32]}  Ra4 {[%clk 0:01:19]} 36. Kxe2 {[%clk 0:00:12]}  Rxd4 {[%clk 0:01:19]} 37. Rd3 {[%clk 0:00:12]}  Re4+ {[%clk 0:01:16]} 38. Kf3 {[%clk 0:00:11]}  Re5 {[%clk 0:01:13]} 39. Kf4 {[%clk 0:00:11]}  Kf6 {[%clk 0:01:13]} 40. h4 {[%clk 0:00:10]}  Rf5+ {[%clk 0:01:13]} 41. Ke4 {[%clk 0:00:10]}  Re5+ {[%clk 0:01:13]} 42. Kf4 {[%clk 0:00:10]}  Re1 {[%clk 0:01:11]} 43. g3 {[%clk 0:00:10]}  Rf1+ {[%clk 0:01:10]} 44. Ke4 {[%clk 0:00:10]}  Re1+ {[%clk 0:01:08]} 45. Kf4 {[%clk 0:00:09]}  g6 {[%clk 0:01:07]} 46. Rb3 {[%clk 0:00:07]}  Rf1+ {[%clk 0:01:06]} 47. Ke4 {[%clk 0:00:07]}  g5 {[%clk 0:00:43]} 48. hxg5+ {[%clk 0:00:06]}  Kxg5 {[%clk 0:00:43]} 49. Rb6 {[%clk 0:00:06]}  Kg4 {[%clk 0:00:40]} 50. Rxd6 {[%clk 0:00:06]}  Re1+ {[%clk 0:00:39]} 51. Kd4 {[%clk 0:00:05]}  Kxg3 {[%clk 0:00:39]} 52. Rg6+ {[%clk 0:00:05]}  Kf4 {[%clk 0:00:39]} 53. d6 {[%clk 0:00:05]}  h4 {[%clk 0:00:37]} 54. Rh6 {[%clk 0:00:02]}  Kg5 {[%clk 0:00:37]} 55. Rh8 {[%clk 0:00:03]}  Kg4 {[%clk 0:00:34]} 56. Kd5 {[%clk 0:00:03]}  Kg3 {[%clk 0:00:33]} 57. Kc6 {[%clk 0:00:04]}  h3 {[%clk 0:00:32]} 58. Rh5 {[%clk 0:00:04]}  h2 {[%clk 0:00:27]} 59. d7 {[%clk 0:00:04]}  Rd1 {[%clk 0:00:26]} 60. Kc7 {[%clk 0:00:02]}  Rc1+ {[%clk 0:00:24]} 61. Kb8 {[%clk 0:00:03]}  Rd1 {[%clk 0:00:24]} 62. Kc8 {[%clk 0:00:03]}  Rxd7 {[%clk 0:00:20]} 63. Kxd7 {[%clk 0:00:03]}  Kg2 {[%clk 0:00:21]} 64. Ke6 {[%clk 0:00:04]}  h1=Q {[%clk 0:00:21]} 65. Rxh1 {[%clk 0:00:02]}  Kxh1 {[%clk 0:00:22]} 1/2-1/2


[Site "https://www.chess.com"]

[Event "Titled Tuesday Blitz February 21 Early 2023"]
[White "Ouakhir, Pierre Mehdi"]
[Black "Larina, Maria"]
[WhiteFideId "9000437"]
[BlackFideId "24113182"]
[WhiteElo "2212"]
[BlackElo "1948"]
[Result "1-0"]
[Round "02"]
[TimeControl "180+2"]
[Date "2023.02.21"]
[WhiteClock "0:00:40"]
[BlackClock "0:00:06"]

1. d4 {[%clk 0:03:00]}  f5 {[%clk 0:02:59]} 2. g4 {[%clk 0:03:00]}  fxg4 {[%clk 0:02:44]} 3. e4 {[%clk 0:03:00]}  d5 {[%clk 0:02:29]} 4. Nc3 {[%clk 0:02:59]}  dxe4 {[%clk 0:02:26]} 5. Bc4 {[%clk 0:02:59]}  Nc6 {[%clk 0:02:15]} 6. Bg5 {[%clk 0:02:42]}  Qxd4 {[%clk 0:01:48]} 7. Qe2 {[%clk 0:02:40]}  Nf6 {[%clk 0:01:37]} 8. Rd1 {[%clk 0:02:35]}  Qe5 {[%clk 0:01:25]} 9. Bh4 {[%clk 0:01:22]}  Bf5 {[%clk 0:00:48]} 10. Nb5 {[%clk 0:01:01]}  Nh5 {[%clk 0:00:33]} 11. Rd5 {[%clk 0:00:54]}  Qf4 {[%clk 0:00:28]} 12. Bg3 {[%clk 0:00:40]}  Nxg3 {[%clk 0:00:22]} 13. hxg3 {[%clk 0:00:41]}  Qc1+ {[%clk 0:00:18]} 14. Rd1 {[%clk 0:00:41]}  Qxb2 {[%clk 0:00:06]} 15. Nxc7# {[%clk 0:00:40]} 1-0


[Site "https://www.chess.com"]

[Event "Titled Tuesday Blitz February 21 Early 2023"]
[White "Levine, David"]
[Black "Matko, Ognjen"]
[WhiteFideId "2011611"]
[BlackFideId "14509717"]
[WhiteElo "2040"]
[BlackElo "2295"]
[Result "0-1"]
[Round "02"]
[TimeControl "180+2"]
[Date "2023.02.21"]
[WhiteClock "0:00:02"]
[BlackClock "0:01:10"]

1. d4 {[%clk 0:03:00]}  Nf6 {[%clk 0:02:58]} 2. c4 {[%clk 0:02:59]}  c5 {[%clk 0:02:59]} 3. d5 {[%clk 0:02:59]}  b5 {[%clk 0:02:59]} 4. Qc2 {[%clk 0:02:56]}  g6 {[%clk 0:02:59]} 5. e4 {[%clk 0:02:55]}  d6 {[%clk 0:02:59]} 6. Nf3 {[%clk 0:02:53]}  Bg7 {[%clk 0:02:59]} 7. cxb5 {[%clk 0:02:48]}  O-O {[%clk 0:02:58]} 8. Nc3 {[%clk 0:02:47]}  a6 {[%clk 0:02:58]} 9. a4 {[%clk 0:02:45]}  Nbd7 {[%clk 0:02:55]} 10. h3 {[%clk 0:02:42]}  axb5 {[%clk 0:02:40]} 11. Bxb5 {[%clk 0:02:41]}  Ba6 {[%clk 0:02:40]} 12. O-O {[%clk 0:02:38]}  Qb6 {[%clk 0:02:40]} 13. Re1 {[%clk 0:02:31]}  Bxb5 {[%clk 0:02:35]} 14. Nxb5 {[%clk 0:02:31]}  Rfb8 {[%clk 0:02:34]} 15. Bg5 {[%clk 0:02:14]}  h6 {[%clk 0:02:19]} 16. Bf4 {[%clk 0:02:10]}  Ne8 {[%clk 0:02:16]} 17. e5 {[%clk 0:02:04]}  g5 {[%clk 0:01:58]} 18. Bg3 {[%clk 0:01:56]}  Rb7 {[%clk 0:01:49]} 19. e6 {[%clk 0:01:51]}  Ndf6 {[%clk 0:01:43]} 20. exf7+ {[%clk 0:01:47]}  Kxf7 {[%clk 0:01:44]} 21. Qf5 {[%clk 0:01:44]}  Nc7 {[%clk 0:01:36]} 22. Nxc7 {[%clk 0:01:42]}  Qxc7 {[%clk 0:01:35]} 23. Qe6+ {[%clk 0:01:41]}  Kf8 {[%clk 0:01:34]} 24. Re2 {[%clk 0:01:06]}  Qd7 {[%clk 0:01:31]} 25. Ra2 {[%clk 0:00:50]}  Qxe6 {[%clk 0:01:30]} 26. dxe6 {[%clk 0:00:50]}  Nd5 {[%clk 0:01:23]} 27. Ne1 {[%clk 0:00:36]}  Nb4 {[%clk 0:01:20]} 28. Ra3 {[%clk 0:00:36]}  Rba7 {[%clk 0:01:17]} 29. b3 {[%clk 0:00:33]}  Nc6 {[%clk 0:01:15]} 30. Nd3 {[%clk 0:00:30]}  Nd4 {[%clk 0:01:15]} 31. Re1 {[%clk 0:00:28]}  Nc2 {[%clk 0:01:14]} 32. Ra2 {[%clk 0:00:20]}  Nxe1 {[%clk 0:01:13]} 33. Nxe1 {[%clk 0:00:19]}  c4 {[%clk 0:01:13]} 34. bxc4 {[%clk 0:00:18]}  Rxa4 {[%clk 0:01:14]} 35. Rxa4 {[%clk 0:00:17]}  Rxa4 {[%clk 0:01:15]} 36. Nc2 {[%clk 0:00:07]}  Rxc4 {[%clk 0:01:13]} 37. Ne3 {[%clk 0:00:06]}  Re4 {[%clk 0:01:12]} 38. Nf5 {[%clk 0:00:04]}  Rxe6 {[%clk 0:01:11]} 39. Kf1 {[%clk 0:00:02]}  Bc3 {[%clk 0:01:10]} 0-1


[Site "https://www.chess.com"]

[Event "Titled Tuesday Blitz February 21 Early 2023"]
[White "Gurevich, Ilya"]
[Black "Goncalves, Davi Sulzbacher"]
[WhiteFideId "2000628"]
[BlackFideId "2154510"]
[WhiteElo "2586"]
[BlackElo "2282"]
[Result "0-1"]
[Round "02"]
[TimeControl "180+2"]
[Date "2023.02.21"]
[WhiteClock "0:00:12"]
[BlackClock "0:00:38"]

1. d4 {[%clk 0:03:00]}  Nf6 {[%clk 0:03:00]} 2. c4 {[%clk 0:03:00]}  e6 {[%clk 0:03:00]} 3. Nf3 {[%clk 0:03:00]}  b6 {[%clk 0:03:00]} 4. g3 {[%clk 0:03:00]}  Ba6 {[%clk 0:03:00]} 5. b3 {[%clk 0:03:01]}  Bb4+ {[%clk 0:03:00]} 6. Bd2 {[%clk 0:03:01]}  Be7 {[%clk 0:03:01]} 7. Bg2 {[%clk 0:03:01]}  c6 {[%clk 0:03:01]} 8. Bc3 {[%clk 0:03:00]}  Ne4 {[%clk 0:02:51]} 9. Bb2 {[%clk 0:02:59]}  d5 {[%clk 0:02:41]} 10. O-O {[%clk 0:02:52]}  Nd7 {[%clk 0:02:34]} 11. Ne5 {[%clk 0:02:40]}  Nxe5 {[%clk 0:02:24]} 12. dxe5 {[%clk 0:02:41]}  O-O {[%clk 0:02:21]} 13. Qc2 {[%clk 0:02:41]}  Nc5 {[%clk 0:02:12]} 14. Rd1 {[%clk 0:02:38]}  Rc8 {[%clk 0:01:58]} 15. e4 {[%clk 0:02:24]}  Nd7 {[%clk 0:01:47]} 16. exd5 {[%clk 0:02:10]}  cxd5 {[%clk 0:01:47]} 17. Qd2 {[%clk 0:01:55]}  Nc5 {[%clk 0:01:28]} 18. cxd5 {[%clk 0:01:54]}  exd5 {[%clk 0:01:24]} 19. Bxd5 {[%clk 0:01:41]}  Nd3 {[%clk 0:01:21]} 20. Nc3 {[%clk 0:00:44]}  Rxc3 {[%clk 0:01:17]} 21. Bxf7+ {[%clk 0:00:42]}  Rxf7 {[%clk 0:01:14]} 22. Qxc3 {[%clk 0:00:43]}  Rxf2 {[%clk 0:00:37]} 23. Rxd3 {[%clk 0:00:27]}  Bxd3 {[%clk 0:00:38]} 24. Kxf2 {[%clk 0:00:27]}  Bc5+ {[%clk 0:00:39]} 25. Ke1 {[%clk 0:00:13]}  Qd5 {[%clk 0:00:39]} 26. Rd1 {[%clk 0:00:12]}  Qe4+ {[%clk 0:00:37]} 27. Kd2 {[%clk 0:00:12]}  Qe3# {[%clk 0:00:38]} 0-1


[Site "https://www.chess.com"]

[Event "Titled Tuesday Blitz February 21 Early 2023"]
[White "QuiesPrecatio"]
[Black "Von Buelow, Georg"]
[BlackFideId "4620658"]
[WhiteElo "2417"]
[BlackElo "2345"]
[Result "1-0"]
[Round "02"]
[TimeControl "180+2"]
[Date "2023.02.21"]
[WhiteClock "0:00:07"]
[BlackClock "0:00:12"]

1. d4 {[%clk 0:03:00]}  Nf6 {[%clk 0:02:59]} 2. c4 {[%clk 0:02:57]}  g6 {[%clk 0:02:58]} 3. h4 {[%clk 0:02:54]}  Bg7 {[%clk 0:02:54]} 4. Nc3 {[%clk 0:02:52]}  d5 {[%clk 0:02:52]} 5. h5 {[%clk 0:02:49]}  dxc4 {[%clk 0:02:47]} 6. h6 {[%clk 0:02:45]}  Bf8 {[%clk 0:02:47]} 7. e4 {[%clk 0:02:45]}  b5 {[%clk 0:02:43]} 8. e5 {[%clk 0:02:36]}  Nd5 {[%clk 0:02:35]} 9. Nxb5 {[%clk 0:02:34]}  c6 {[%clk 0:02:35]} 10. Nc3 {[%clk 0:02:31]}  Nxc3 {[%clk 0:02:34]} 11. bxc3 {[%clk 0:02:32]}  Be6 {[%clk 0:02:35]} 12. Nf3 {[%clk 0:02:27]}  Nd7 {[%clk 0:02:28]} 13. Nd2 {[%clk 0:02:25]}  Nb6 {[%clk 0:02:28]} 14. Ba3 {[%clk 0:02:20]}  Bd5 {[%clk 0:02:25]} 15. Bc5 {[%clk 0:02:03]}  e6 {[%clk 0:02:22]} 16. Bxb6 {[%clk 0:02:03]}  axb6 {[%clk 0:02:21]} 17. Nxc4 {[%clk 0:02:03]}  Be7 {[%clk 0:02:14]} 18. f4 {[%clk 0:01:55]}  O-O {[%clk 0:02:12]} 19. Qd2 {[%clk 0:01:44]}  c5 {[%clk 0:02:10]} 20. Ne3 {[%clk 0:01:30]}  cxd4 {[%clk 0:01:52]} 21. cxd4 {[%clk 0:01:31]}  Ra4 {[%clk 0:01:35]} 22. Kf2 {[%clk 0:01:21]}  Qd7 {[%clk 0:01:22]} 23. Be2 {[%clk 0:01:14]}  Be4 {[%clk 0:01:14]} 24. Rhd1 {[%clk 0:01:09]}  Rfa8 {[%clk 0:01:12]} 25. Bf3 {[%clk 0:01:04]}  Qb7 {[%clk 0:01:10]} 26. Qe2 {[%clk 0:00:25]}  Bxf3 {[%clk 0:01:09]} 27. Qxf3 {[%clk 0:00:26]}  Rxa2+ {[%clk 0:01:09]} 28. Rxa2 {[%clk 0:00:27]}  Rxa2+ {[%clk 0:01:09]} 29. Kg3 {[%clk 0:00:28]}  Qd7 {[%clk 0:01:03]} 30. d5 {[%clk 0:00:27]}  exd5 {[%clk 0:01:01]} 31. Nxd5 {[%clk 0:00:26]}  Qe8 {[%clk 0:00:51]} 32. Qb3 {[%clk 0:00:19]}  Ra3 {[%clk 0:00:46]} 33. Qxa3 {[%clk 0:00:19]}  Bxa3 {[%clk 0:00:45]} 34. Nf6+ {[%clk 0:00:19]}  Kf8 {[%clk 0:00:45]} 35. Nxe8 {[%clk 0:00:19]}  Kxe8 {[%clk 0:00:46]} 36. Rd3 {[%clk 0:00:19]}  Bc5 {[%clk 0:00:46]} 37. Kf3 {[%clk 0:00:18]}  Bf8 {[%clk 0:00:46]} 38. g4 {[%clk 0:00:16]}  Bxh6 {[%clk 0:00:44]} 39. g5 {[%clk 0:00:17]}  Bf8 {[%clk 0:00:44]} 40. Ke4 {[%clk 0:00:18]}  Bc5 {[%clk 0:00:44]} 41. Kd5 {[%clk 0:00:18]}  Ke7 {[%clk 0:00:43]} 42. Rh3 {[%clk 0:00:16]}  Ba3 {[%clk 0:00:42]} 43. Rxh7 {[%clk 0:00:16]}  Bc1 {[%clk 0:00:42]} 44. f5 {[%clk 0:00:14]}  gxf5 {[%clk 0:00:09]} 45. g6 {[%clk 0:00:12]}  Kf8 {[%clk 0:00:09]} 46. gxf7 {[%clk 0:00:09]}  f4 {[%clk 0:00:09]} 47. e6 {[%clk 0:00:08]}  Ba3 {[%clk 0:00:09]} 48. Rh8+ {[%clk 0:00:07]}  Kg7 {[%clk 0:00:09]} 49. Rg8+ {[%clk 0:00:08]}  Kh7 {[%clk 0:00:10]} 50. f8=Q {[%clk 0:00:08]}  Bxf8 {[%clk 0:00:10]} 51. Rxf8 {[%clk 0:00:09]}  b5 {[%clk 0:00:10]} 52. Rxf4 {[%clk 0:00:10]}  b4 {[%clk 0:00:11]} 53. Rxb4 {[%clk 0:00:10]}  Kg6 {[%clk 0:00:12]} 54. Rf4 {[%clk 0:00:11]}  Kg5 {[%clk 0:00:12]} 55. Ke5 {[%clk 0:00:11]}  Kg6 {[%clk 0:00:12]} 56. e7 {[%clk 0:00:12]}  Kg7 {[%clk 0:00:13]} 57. e8=Q {[%clk 0:00:11]}  Kh6 {[%clk 0:00:13]} 58. Qe6+ {[%clk 0:00:08]}  Kg5 {[%clk 0:00:12]} 59. Qf6+ {[%clk 0:00:07]} 1-0


[Site "https://www.chess.com"]

[Event "Titled Tuesday Blitz February 21 Early 2023"]
[White "Devaev, Alexander"]
[Black "Mitrovic, Darko R"]
[WhiteFideId "4169395"]
[BlackFideId "927023"]
[WhiteElo "2325"]
[BlackElo "2220"]
[Result "1-0"]
[Round "02"]
[TimeControl "180+2"]
[Date "2023.02.21"]
[WhiteClock "0:00:14"]
[BlackClock "0:00:04"]

1. d4 {[%clk 0:02:55]}  Nf6 {[%clk 0:02:59]} 2. c4 {[%clk 0:02:55]}  e6 {[%clk 0:02:58]} 3. Nf3 {[%clk 0:02:55]}  Bb4+ {[%clk 0:02:58]} 4. Bd2 {[%clk 0:02:55]}  Bxd2+ {[%clk 0:02:58]} 5. Qxd2 {[%clk 0:02:55]}  Nc6 {[%clk 0:02:59]} 6. Nc3 {[%clk 0:02:56]}  d6 {[%clk 0:02:59]} 7. g3 {[%clk 0:02:56]}  O-O {[%clk 0:02:59]} 8. Bg2 {[%clk 0:02:57]}  e5 {[%clk 0:03:00]} 9. O-O {[%clk 0:02:57]}  h6 {[%clk 0:02:56]} 10. Nd5 {[%clk 0:02:56]}  e4 {[%clk 0:02:45]} 11. Ne1 {[%clk 0:02:50]}  Bf5 {[%clk 0:02:44]} 12. Ne3 {[%clk 0:02:33]}  Bg6 {[%clk 0:02:41]} 13. N1c2 {[%clk 0:02:33]}  Qd7 {[%clk 0:02:32]} 14. Rfd1 {[%clk 0:02:27]}  Rae8 {[%clk 0:02:31]} 15. b4 {[%clk 0:02:26]}  h5 {[%clk 0:02:22]} 16. h4 {[%clk 0:02:21]}  Ng4 {[%clk 0:02:16]} 17. Nxg4 {[%clk 0:02:21]}  hxg4 {[%clk 0:02:03]} 18. Qg5 {[%clk 0:01:44]}  Qf5 {[%clk 0:01:59]} 19. b5 {[%clk 0:01:26]}  Qxg5 {[%clk 0:01:56]} 20. hxg5 {[%clk 0:01:27]}  Ne7 {[%clk 0:01:39]} 21. Ne3 {[%clk 0:01:26]}  Nf5 {[%clk 0:01:39]} 22. Nxg4 {[%clk 0:01:25]}  e3 {[%clk 0:01:39]} 23. f4 {[%clk 0:01:10]}  Nxg3 {[%clk 0:01:32]} 24. Bf3 {[%clk 0:01:01]}  b6 {[%clk 0:01:12]} 25. Kh2 {[%clk 0:00:56]}  Nh5 {[%clk 0:01:08]} 26. a4 {[%clk 0:00:35]}  Nxf4 {[%clk 0:01:07]} 27. Ra3 {[%clk 0:00:36]}  Be4 {[%clk 0:00:40]} 28. Rxe3 {[%clk 0:00:33]}  Bxf3 {[%clk 0:00:36]} 29. exf3 {[%clk 0:00:32]}  Rxe3 {[%clk 0:00:30]} 30. Nxe3 {[%clk 0:00:33]}  Re8 {[%clk 0:00:30]} 31. Nf5 {[%clk 0:00:24]}  Re2+ {[%clk 0:00:27]} 32. Kg3 {[%clk 0:00:24]}  Ne6 {[%clk 0:00:24]} 33. f4 {[%clk 0:00:17]}  Ra2 {[%clk 0:00:20]} 34. d5 {[%clk 0:00:15]}  Nc5 {[%clk 0:00:16]} 35. Re1 {[%clk 0:00:16]}  Rxa4 {[%clk 0:00:11]} 36. Re8+ {[%clk 0:00:15]}  Kh7 {[%clk 0:00:11]} 37. Re7 {[%clk 0:00:16]}  Kg8 {[%clk 0:00:05]} 38. Rxc7 {[%clk 0:00:16]}  Rxc4 {[%clk 0:00:05]} 39. Rxa7 {[%clk 0:00:16]}  Rc3+ {[%clk 0:00:05]} 40. Kg2 {[%clk 0:00:16]}  Ne4 {[%clk 0:00:05]} 41. Rb7 {[%clk 0:00:14]}  Kh7 {[%clk 0:00:04]} 42. Rxb6 {[%clk 0:00:14]}  Kg6 {[%clk 0:00:04]} 43. Nxd6 {[%clk 0:00:14]}  Nxd6 {[%clk 0:00:04]} 44. Rxd6+ {[%clk 0:00:15]}  Kf5 {[%clk 0:00:05]} 45. Rd7 {[%clk 0:00:14]}  Kxf4 {[%clk 0:00:05]} 46. Rxf7+ {[%clk 0:00:14]}  Ke5 {[%clk 0:00:05]} 47. Rxg7 {[%clk 0:00:13]}  Kxd5 {[%clk 0:00:04]} 48. b6 {[%clk 0:00:14]}  Rb3 {[%clk 0:00:03]} 49. b7 {[%clk 0:00:14]}  Kc6 {[%clk 0:00:03]} 50. g6 {[%clk 0:00:13]}  Kd6 {[%clk 0:00:03]} 51. Rf7 {[%clk 0:00:13]}  Ke6 {[%clk 0:00:03]} 52. Rc7 {[%clk 0:00:10]}  Kf6 {[%clk 0:00:03]} 53. g7 {[%clk 0:00:11]}  Rb2+ {[%clk 0:00:02]} 54. Kf3 {[%clk 0:00:11]}  Rb3+ {[%clk 0:00:02]} 55. Ke2 {[%clk 0:00:12]}  Rb2+ {[%clk 0:00:02]} 56. Kd3 {[%clk 0:00:12]}  Rb3+ {[%clk 0:00:02]} 57. Kc2 {[%clk 0:00:13]}  Rb2+ {[%clk 0:00:03]} 58. Kxb2 {[%clk 0:00:13]}  Kg6 {[%clk 0:00:04]} 59. g8=Q+ {[%clk 0:00:13]}  Kf6 {[%clk 0:00:04]} 60. b8=Q {[%clk 0:00:14]}  Ke5 {[%clk 0:00:04]} 61. Re7+ {[%clk 0:00:14]}  Kf5 {[%clk 0:00:04]} 62. Qe5# {[%clk 0:00:14]} 1-0


[Site "https://www.chess.com"]